fUSD/lending_fUSD_20260309
["ID","MTS","AMOUNT","RATE_DAILY","PERIOD"]
[408021060,1773036639545,-1566.25,0.00019339,2]
[408021061,1773036639554,-1615.55,0.00019339,2]
[408021062,1773036639563,-9999.99,0.00019339,2]
[408021063,1773036639572,-153.33762345,0.00019349,2]
[408021064,1773036639583,-166.66,0.00019355,2]
[408021065,1773036639593,-847.0,0.0001936,2]
[408021066,1773036639602,-2034.02090196,0.00019365,2]
[408021067,1773036639613,-532.0,0.00019379,5]
[408021068,1773036639623,-1600.0,0.000194,7]
[408021069,1773036639633,-257.12186421,0.00019425,2]
[408021070,1773036639643,-257.12186421,0.00019425,2]
[408021071,1773036639653,-257.12186421,0.00019425,2]
[408021072,1773036639662,-171.41457614,0.00019425,2]
[408021073,1773036639671,-290.9,0.00019447,2]
[408021074,1773036639680,-500.0,0.00019452,7]
[408021075,1773036639690,-1100.0,0.00019452,7]
[408021076,1773036639700,-1000.0,0.00019452,7]
[408021077,1773036639710,-1000.0,0.00019452,2]
[408021078,1773036639719,-2034.02090196,0.00019454,2]
[408021079,1773036639730,-6240.0,0.00019463,7]
[408021080,1773036639740,-172.87392778,0.00019463,7]
[408021081,1773036639750,-350.0,0.00019471,3]
[408021082,1773036639760,-1144.0,0.000195,2]
[408021083,1773036639770,-2000.0,0.000195,2]
[408021084,1773036639780,-300.0,0.000195,7]
[408021085,1773036639789,-2034.02090196,0.00019544,2]
[408021086,1773036639799,-181.08010149,0.00019547,2]
[408021087,1773036639808,-272.62944185,0.00019547,2]
[408021088,1773036639818,-290.9,0.00019557,2]
[408021089,1773036639828,-1481.23780761,0.00019577,2]
[408021090,1773036639838,-200.0,0.00019577,2]
[408021091,1773036639848,-301.00069851,0.00019577,2]
[408021092,1773036639858,-200.0,0.00019589,5]
[408021093,1773036639874,-3091.17,0.00019589,2]
[408021094,1773036639884,-3091.17,0.00019589,2]
[408021095,1773036639893,-3091.17,0.00019589,2]
[408021096,1773036639903,-3091.17,0.00019589,2]
[408021097,1773036639914,-4288.38,0.00019589,2]
[408021098,1773036639924,-232.08264783,0.000196,2]
[408021099,1773036639933,-300.0,0.000196,7]
[408021100,1773036639946,-168.0,0.00019606,2]
[408021101,1773036639955,-168.0,0.00019606,2]
[408021102,1773036639967,-171.41457614,0.00019616,2]
[408021103,1773036639977,-500.0,0.00019621,2]
[408021104,1773036639987,-1000.0,0.00019621,2]
[408021105,1773036639997,-2034.02090196,0.00019633,2]
[408021106,1773036640006,-168.0,0.00019658,2]
[408021107,1773036640016,-290.9,0.00019668,2]
[408021108,1773036640026,-150.0,0.00019672,2]
[408021110,1773036640036,-500.0,0.00019672,2]
[408021111,1773036640046,-500.0,0.00019672,2]
[408021113,1773036640056,-150.0,0.00019672,2]
[408021114,1773036640066,-150.0,0.00019672,2]
[408021115,1773036640075,-150.0,0.00019672,2]
[408021116,1773036640085,-150.0,0.00019672,2]
[408021117,1773036640095,-150.0,0.00019672,2]
[408021118,1773036640104,-150.0,0.00019672,2]
[408021119,1773036640114,-150.0,0.00019672,2]
[408021120,1773036640123,-252.34824749,0.00019672,2]
[408021121,1773036640132,-150.0,0.00019672,2]
[408021122,1773036640141,-150.0,0.00019672,2]
[408021123,1773036640151,-500.0,0.00019672,2]
[408021124,1773036640161,-150.0,0.00019672,2]
[408021125,1773036640171,-252.77032458,0.00019672,2]
[408021126,1773036640180,-288.01614418,0.00019672,2]
[408021127,1773036640190,-150.0,0.00019672,2]
[408021128,1773036640199,-500.0,0.00019672,2]
[408021129,1773036640209,-500.0,0.00019672,2]
[408021130,1773036640219,-150.0,0.00019672,2]
[408021131,1773036640229,-150.0,0.00019672,2]
[408021132,1773036640238,-150.0,0.00019672,2]
[408021133,1773036640248,-451.0,0.00019677,2]
[408021134,1773036640258,-168.0,0.00019695,2]
[408021135,1773036640269,-300.0,0.000197,7]
[408021136,1773036640278,-2500.0,0.0001971,2]
[408021137,1773036640288,-500.0,0.00019721,2]
[408021138,1773036640297,-2034.02090196,0.00019722,2]
[408021139,1773036640306,-451.0,0.00019723,2]
[408021140,1773036640316,-1000.0,0.00019726,2]
[408021141,1773036640326,-150.0,0.00019727,2]
[408021142,1773036640336,-500.0,0.00019727,2]
[408021143,1773036640345,-500.0,0.00019727,2]
[408021144,1773036640354,-150.0,0.00019727,2]
[408021145,1773036640365,-150.0,0.00019727,2]
[408021146,1773036640375,-150.0,0.00019727,2]
[408021147,1773036640384,-150.0,0.00019727,2]
[408021148,1773036640394,-150.0,0.00019727,2]
[408021149,1773036640404,-150.0,0.00019727,2]
[408021150,1773036640414,-500.0,0.00019727,2]
[408021151,1773036640424,-200.0,0.00019727,2]
[408021152,1773036640433,-500.0,0.00019727,2]
[408021153,1773036640443,-500.0,0.00019727,2]
[408021154,1773036640453,-150.0,0.00019727,2]
[408021155,1773036640463,-150.0,0.00019727,2]
[408021156,1773036640472,-451.0,0.0001973,2]
[408021157,1773036640482,-5000.0,0.0001975,7]
[408021158,1773036640491,-290.9,0.00019779,2]
[408021159,1773036640501,-262.63986513,0.00019782,2]
[408021160,1773036640512,-500.0,0.00019782,2]
[408021162,1773036640522,-200.0,0.00019782,2]
[408021163,1773036640532,-150.0,0.00019782,2]
[408021164,1773036640543,-200.87563366,0.00019782,2]
[408021165,1773036640557,-150.0,0.00019782,2]
[408021166,1773036640568,-150.0,0.00019782,2]
[408021167,1773036640578,-500.0,0.00019782,2]
[408021168,1773036640587,-500.0,0.00019782,2]
[408021169,1773036640596,-500.0,0.00019782,2]
[408021170,1773036640605,-150.0,0.00019782,2]
[408021171,1773036640615,-150.0,0.00019782,2]
[408021172,1773036640624,-300.0,0.000198,7]
[408021173,1773036640633,-152.14,0.00019802,2]
[408021174,1773036640644,-2491.711,0.0001981,2]
[408021175,1773036640655,-182.884,0.0001981,2]
[408021176,1773036640665,-2034.02090196,0.00019811,2]
[408021177,1773036640675,-274.92099103,0.00019835,2]
[408021178,1773036640684,-500.0,0.00019836,2]
[408021179,1773036640693,-150.0,0.00019836,2]
[408021180,1773036640704,-251.75912456,0.00019836,2]
[408021181,1773036640715,-256.0280639,0.00019836,2]
[408021182,1773036640725,-500.0,0.00019836,2]
[408021183,1773036640736,-500.0,0.00019836,2]
[408021184,1773036640746,-150.0,0.00019836,2]
[408021185,1773036640755,-150.0,0.00019836,2]
[408021186,1773036640764,-200.0,0.0001984,2]
[408021187,1773036640774,-500.0,0.00019864,2]
[408021188,1773036640783,-500.0,0.00019873,2]
[408021189,1773036640793,-500.0,0.00019873,2]
[408021190,1773036640803,-1423.26447254,0.0001988,2]
[408021191,1773036640812,-1423.26447248,0.00019882,2]
[408021192,1773036640821,-1423.26447248,0.00019884,2]
[408021193,1773036640830,-1423.26447248,0.00019887,2]
[408021194,1773036640840,-500.0,0.00019887,2]
[408021195,1773036640850,-1423.26447248,0.00019889,2]
[408021196,1773036640859,-290.9,0.00019889,2]
[408021197,1773036640874,-1423.26447248,0.00019891,2]
[408021198,1773036640883,-499.0,0.00019891,2]
[408021199,1773036640893,-201.78439564,0.00019891,2]
[408021200,1773036640902,-500.0,0.00019891,2]
[408021201,1773036640913,-186.34426162,0.00019891,2]
[408021202,1773036640923,-150.0,0.00019891,2]
[408021203,1773036640932,-253.24682162,0.00019891,2]
[408021204,1773036640942,-25000.0,0.00019891,3]
[408021205,1773036640952,-1423.26447248,0.00019893,2]
[408021206,1773036640962,-1423.26447248,0.00019896,2]
[408021207,1773036640971,-1423.26447248,0.00019898,2]
[408021208,1773036640980,-25000.0,0.000199,3]
[408021209,1773036640990,-402.42731676,0.000199,3]
[408021210,1773036640999,-172.87392778,0.000199,3]
[408021211,1773036641009,-1989.33883756,0.000199,2]
[408021212,1773036641022,-25000.0,0.000199,3]
[408021213,1773036641032,-1423.26447248,0.000199,2]
[408021214,1773036641041,-600.0,0.000199,7]
[408021215,1773036641051,-2034.02090196,0.000199,2]
[408021216,1773036641060,-152.11576011,0.00019941,2]
[408021217,1773036641070,-232.35755136,0.00019946,2]
[408021218,1773036641080,-250.0,0.00019946,2]
[408021219,1773036641089,-9383.3126835,0.00019978,2]
[408021220,1773036641099,-23488.5783274,0.00019978,2]
[408021221,1773036641109,-21938.4717145,0.00019978,2]
[408021222,1773036641119,-19103.7358097,0.00019978,2]
[408021223,1773036641129,-200.01,0.0001998,2]
[408021224,1773036641139,-57607.00122224,0.0001998,2]
[408021225,1773036641149,-151.0,0.00019997,2]
[408021226,1773036641159,-300.0,0.00019997,2]
[408021227,1773036641169,-150.0,0.00019998,2]
[408021228,1773036641180,-150.182,0.00019998,2]
[408021229,1773036641191,-150.0,0.00019998,2]
[408021230,1773036641200,-150.236,0.00019998,2]
[408021231,1773036641211,-150.1,0.00019998,2]
[408021232,1773036641220,-150.0,0.00019998,2]
[408021233,1773036641229,-150.0,0.00019998,2]
[408021234,1773036641238,-150.0,0.00019998,2]
[408021235,1773036641248,-150.186,0.00019998,2]
[408021236,1773036641257,-3505.0,0.00019998,2]
[408021237,1773036641268,-1042.0,0.00019998,2]
[408021238,1773036641282,-619.0,0.00019998,2]
[408021239,1773036641292,-1279.0,0.00019998,2]
[408021240,1773036641302,-150.0,0.00019998,2]
[408021241,1773036641312,-151.0,0.00019998,2]
[408021242,1773036641322,-151.0,0.00019998,2]
[408021243,1773036641332,-162.979595,0.00019998,2]
[408021244,1773036641341,-155.509,0.00019999,2]
[408021245,1773036641351,-500.0,0.00019999,2]
[408021246,1773036641360,-33181.70399474,0.00019999,2]
[408021247,1773036641369,-500.0,0.00019999,2]
[408021248,1773036641379,-151.0,0.00019999,2]
[408021249,1773036641388,-151.0,0.00019999,2]
[408021250,1773036641397,-228.040624,0.00019999,2]
[408021251,1773036641406,-349.03538361,0.00019999,2]
[408021252,1773036641415,-294.75283121,0.00019999,2]
[408021253,1773036641425,-500.0,0.00019999,2]
[408021254,1773036641434,-500.0,0.00019999,2]
[408021255,1773036641443,-500.0,0.00019999,2]
[408021256,1773036641452,-507.81136579,0.00019999,2]
[408021257,1773036641461,-391.45346563,0.00019999,2]
[408021258,1773036641470,-1181.0,0.0002,2]
[408021259,1773036641479,-28920.4031906,0.0002,2]
[408021289,1773036646673,-150.0,0.00019198,2]
[408021290,1773036646683,-414.0,0.00019198,2]
[408021292,1773036646693,-819.06069021,0.0002,2]
[408021294,1773036646715,-686.11417984,0.0002,2]
[408021302,1773036776879,150.0,0.00012,2]
[408021304,1773037105684,-151.39,0.00014,2]
[408021305,1773037105713,-1573.79,0.000159,2]
[408021306,1773037105741,-500.0,0.00015901,2]
[408021307,1773037105767,-500.0,0.00015901,2]
[408021308,1773037105794,-500.0,0.00015901,2]
[408021309,1773037105821,-500.0,0.00015901,2]
[408021310,1773037105848,-49.65,0.00016465,2]
[408021311,1773037106051,-2450.35,0.00016465,2]
[408021312,1773037106083,-200.0,0.000165,5]
[408021313,1773037106110,-195.0,0.00016557,2]
[408021314,1773037106138,-151.39,0.000166,2]
[408021315,1773037106166,-195.0,0.00016967,2]
[408021316,1773037106194,-195.0,0.00016967,2]
[408021317,1773037106222,-510.0,0.00017,2]
[408021318,1773037106249,-1082.31839664,0.00017018,2]
[408021319,1773037106585,-41.89320672,0.00017018,2]
[408021320,1773037106611,-195.0,0.00017491,2]
[408021321,1773037106638,-195.0,0.00017491,2]
[408021322,1773037106665,-2500.0,0.00017491,2]
[408021323,1773037106692,-200.0,0.00017491,2]
[408021324,1773037106719,-1802.61664156,0.00017491,2]
[408021325,1773037107021,-286.32127382,0.00017491,2]
[408021326,1773037107050,-300.0,0.00018355,2]
[408021327,1773037107079,-1200.0,0.00018355,2]
[408021328,1773037107107,-1000.0,0.00018356,7]
[408021329,1773037107134,-800.0,0.00018356,7]
[408021330,1773037107162,-500.0,0.00018356,7]
[408021331,1773037107190,-384.08634703,0.0001837,2]
[408021332,1773037107359,-1059.1947583,0.0001837,2]
[408021333,1773037107386,-150.0,0.00018556,2]
[408021334,1773037107415,-212.0,0.00018578,2]
[408021335,1773037107444,-2000.0,0.00018613,2]
[408021336,1773037107472,-714.69,0.00018621,2]
[408021337,1773037108563,-4859.62,0.00018639,2]
[408021338,1773037108618,-10.77,0.00018681,2]
[408021339,1773037108800,-259.23,0.00018681,2]
[408021340,1773037108855,-208.25,0.00018682,2]
[408021341,1773037108903,-2528.28990715,0.00018767,2]
[408021342,1773037108952,-150.99,0.000188,2]
[408021343,1773037109003,-299.99,0.000188,4]
[408021344,1773037109053,-999.99,0.000188,2]
[408021345,1773037109104,-510.0,0.000188,3]
[408021346,1773037109204,-500.0,0.00018921,2]
[408021347,1773037109266,-2029.35857449,0.00018921,2]
[408021348,1773037109323,-302.2226,0.00018928,2]
[408021349,1773037110009,-2462.40783672,0.00018928,2]
[408021350,1773037113980,-3074.11686328,0.00018928,2]
[408021351,1773037114014,-1826.58,0.00018928,2]
[408021352,1773037114046,-30.61627344,0.00018978,2]
[408021353,1773037114112,-137.38372656,0.00018978,2]
[408021354,1773037114165,-578.20924308,0.00018999,2]
[408021355,1773037114195,-200.0,0.00019,6]
[408021356,1773037114226,-2193.9935414,0.00019021,2]
[408021357,1773037114256,-500.0,0.000191,6]
[408021358,1773037114287,-500.0,0.00019187,2]
[408021359,1773037114319,-151.0,0.00019187,2]
[408021360,1773037114351,-174.61919141,0.00019187,2]
[408021361,1773037114383,-262.90206542,0.00019187,2]
[408021362,1773037114414,-78.56191738,0.000192,7]
[408021363,1773037114877,-721.43808262,0.000192,7]
[408021364,1773037114909,-151.39,0.000192,2]
[408021365,1773037114941,-1562.39001659,0.00019209,2]
[408021366,1773037114972,-1000.0,0.00019239,2]
[408021367,1773037115006,-1100.0,0.000193,7]
[408021368,1773037115039,-153.33762346,0.00019369,2]
[408021369,1773037115267,-568.10045916,0.000194,7]
[408021370,1773037115287,-153.33762346,0.000194,7]
[408021371,1773037115303,-622.89855466,0.000194,7]
[408021372,1773037117618,-55.66336272,0.000194,7]
[408021373,1773037117649,-151.0,0.00019448,2]
[408021374,1773037117677,-1000.0,0.00019452,7]
[408021375,1773037117707,-800.0,0.00019452,7]
[408021376,1773037117737,-500.0,0.00019452,7]
[408021377,1773037117767,-168.0,0.00019457,2]
[408021378,1773037117795,-200.0,0.000195,7]
[408021379,1773037117822,-2000.0,0.000195,2]
[408021380,1773037117849,-99.68327456,0.00019558,2]
[408021381,1773037117942,-51.31672544,0.00019558,2]
[408021382,1773037117971,-200.0,0.000196,7]
[408021383,1773037118003,-154.72176522,0.000196,2]
[408021384,1773037118032,-1875.164868,0.000196,2]
[408021385,1773037118063,-208.25,0.00019616,2]
[408021386,1773037118096,-151.0,0.00019669,2]
[408021387,1773037118127,-500.0,0.00019672,2]
[408021388,1773037118156,-150.0,0.00019696,2]
[408021389,1773037118184,-150.0,0.00019696,2]
[408021390,1773037118215,-200.0,0.000197,7]
[408021391,1773037118242,-150.0,0.00019725,2]
[408021392,1773037118268,-250.0,0.00019725,2]
[408021393,1773037118295,-150.0,0.00019725,2]
[408021394,1773037118323,-500.0,0.00019725,2]
[408021395,1773037118352,-150.0,0.00019725,2]
[408021396,1773037118381,-150.0,0.00019725,2]
[408021397,1773037118504,-1000.0,0.00019726,2]
[408021398,1773037118532,-500.0,0.00019727,2]
[408021399,1773037118561,-181.08010149,0.00019735,2]
[408021400,1773037118589,-272.62944185,0.00019735,2]
[408021401,1773037118617,-150.0,0.00019751,2]
[408021402,1773037118644,-267.0,0.00019773,2]
[408021403,1773037118672,-151.0,0.00019779,2]
[408021404,1773037118700,-150.0,0.0001978,2]
[408021405,1773037118728,-500.0,0.0001978,2]
[408021406,1773037118757,-268.27881417,0.0001978,2]
[408021407,1773037118796,-500.0,0.00019782,2]
[408021408,1773037118826,-228.78,0.00019782,2]
[408021409,1773037118854,-150.0,0.00019799,2]
[408021410,1773037118883,-200.0,0.000198,7]
[408021411,1773037120244,-70.42000812,0.000198,2]
[408021412,1773037120261,-962.47328498,0.000198,2]
[408021415,1773037582557,-1200.0,0.00013199,2]
[408021416,1773037582590,-238.44,0.000132,2]
[408021417,1773037582620,-2971.23,0.000132,2]
[408021418,1773037582648,-379.64,0.000132,2]
[408021419,1773037582761,-421.39,0.000132,2]
[408021420,1773037583064,-2421.02,0.000132,2]
[408021421,1773037583110,-172.39,0.00014,2]
[408021422,1773037583141,-1680.0,0.00014519,2]
[408021423,1773037583281,-1453.19,0.000156,2]
[408021424,1773037583302,-10000.01,0.000156,2]
[408021425,1773037584544,-10000.01,0.000156,2]
[408021426,1773037587594,-10000.01,0.000156,2]
[408021427,1773037587740,-10000.01,0.000156,2]
[408021428,1773037646356,830.87369684,8e-05,2]
[408021452,1773037831432,-804.84589999,0.000145,2]
[408021453,1773037831495,-195.15410001,0.000145,2]
[408021454,1773037831505,-500.0,0.00015,30]
[408021455,1773037831516,-1200.0,0.00015599,2]
[408021456,1773037831526,-300.0,0.00015599,2]
[408021457,1773037831537,-57263.35902258,0.000156,2]
[408021458,1773037831546,-172.39,0.0001595,2]
[408021459,1773037831555,-225.12936194,0.00016,2]
[408021460,1773037831564,-640.216923,0.00016135,2]
[408021461,1773037831573,-1602.6094247,0.00016135,2]
[408021462,1773037831582,-1496.8467245,0.00016135,2]
[408021463,1773037831592,-250.0,0.00016722,2]
[408021464,1773037831601,-509.0,0.00017,2]
[408021465,1773037831610,-1680.0,0.00017148,2]
[408021467,1773037831620,-195.0,0.0001716,2]
[408021468,1773037831629,-195.0,0.0001716,2]
[408021470,1773037831638,-195.0,0.0001716,2]
[408021472,1773037831647,-195.0,0.0001716,2]
[408021474,1773037831656,-196.25174727,0.0001716,2]
[408021476,1773037831666,-156.82,0.00017191,2]
[408021478,1773037831675,-1496.8467245,0.0001784,2]
[408021480,1773037831684,-1602.6094247,0.00017864,2]
[408021481,1773037831693,-172.39,0.000179,2]
[408021482,1773037831702,-640.216923,0.00017904,2]
[408021483,1773037831711,-152.0,0.00017956,3]
[408021484,1773037831721,-200.25,0.00018,4]
[408021485,1773037831731,-1852.42,0.00018328,2]
[408021486,1773037831739,-500.0,0.00018356,7]
[408021487,1773037831748,-1000.0,0.00018356,7]
[408021488,1773037831758,-900.0,0.00018356,7]
[408021489,1773037831767,-204.28312793,0.00018362,2]
[408021490,1773037831777,-211.0,0.00018406,2]
[408021491,1773037831786,-152.0,0.00018506,4]
[408021492,1773037831795,-1134.98,0.00018649,2]
[408021493,1773037831805,-594.0,0.00018701,2]
[408021494,1773037831814,-284.64182686,0.0001872,2]
[408021495,1773037831833,-798.48795508,0.0001872,2]
[408021499,1773037837535,-1148.87021806,0.0001872,2]
[408021500,1773037837545,-2806.0,0.0001872,2]
[408021501,1773037837554,-561.36716304,0.0001872,2]
[408021502,1773037837565,-285.63283696,0.0001872,2]
[408021503,1773037837574,-228.6,0.00018784,2]
[408021504,1773037837584,-384.01457508,0.00018784,2]
[408021505,1773037837593,-287.73245241,0.00018787,2]
[408021506,1773037837620,-165.38754759,0.00018787,2]
[408021507,1773037837629,-509.0,0.000188,3]
[408021508,1773037837638,-1838.7324,0.00018828,2]
[408021509,1773037837647,-2351.0,0.00018851,2]
[408021510,1773037837656,-271.0,0.0001889,2]
[408021511,1773037837665,-228.6,0.00018895,2]
[408021512,1773037837674,-2578.96,0.0001898,2]
[408021513,1773037837684,-400.0,0.00019,6]
[408021514,1773037837693,-228.6,0.00019005,2]
[408021515,1773037837702,-157.13002813,0.00019014,2]
[408021516,1773037837711,-152.0,0.00019055,5]
[408021517,1773037837721,-800.0,0.000191,6]
[408021518,1773037837730,-1134.98,0.00019115,2]
[408021519,1773037837739,-228.6,0.00019116,2]
[408021520,1773037837747,-157.13002813,0.00019178,2]
[408021521,1773037837756,-1200.0,0.000192,7]
[408021522,1773037837766,-228.6,0.00019226,2]
[408021524,1773037837775,-1600.0,0.000193,7]
[408021526,1773037837784,-278.7279882,0.00019336,2]
[408021528,1773037837793,-228.6,0.00019337,2]
[408021530,1773037837802,-9999.99,0.00019339,2]
[408021532,1773037837812,-157.13002813,0.00019342,2]
[408021534,1773037837821,-772.2074,0.00019352,2]
[408021536,1773037837830,-153.33762345,0.00019355,2]
[408021538,1773037837840,-2000.0,0.000194,7]
[408021540,1773037837849,-171.41457614,0.00019425,2]
[408021542,1773037837858,-171.41457613,0.00019425,2]
[408021544,1773037837867,-228.6,0.00019447,2]
[408021546,1773037837876,-500.0,0.00019452,7]
[408021548,1773037837886,-1000.0,0.00019452,7]
[408021550,1773037837895,-900.0,0.00019452,7]
[408021552,1773037837904,-1000.0,0.00019452,2]
[408021554,1773037837913,-271.0,0.00019475,2]
[408021556,1773037837922,-400.0,0.000195,7]
[408021558,1773037837931,-157.13002813,0.00019507,2]
[408021560,1773037837940,-1496.8467245,0.00019546,2]
[408021562,1773037837949,-228.6,0.00019558,2]
[408021564,1773037837958,-1134.98,0.00019581,2]
[408021566,1773037837967,-1602.6094247,0.00019592,2]
[408021568,1773037837975,-180.50872609,0.000196,2]
[408021570,1773037837985,-400.0,0.000196,7]
[408021572,1773037837994,-152.0,0.00019605,6]
[408021574,1773037838003,-271.0,0.00019612,2]
[408021576,1773037838012,-228.6,0.00019668,2]
[408021578,1773037838021,-157.13002813,0.00019671,2]
[408021580,1773037838030,-150.0,0.00019672,2]
[408021581,1773037838039,-150.0,0.00019672,2]
[408021583,1773037838048,-500.0,0.00019672,2]
[408021585,1773037838057,-150.0,0.00019672,2]
[408021586,1773037838066,-150.0,0.00019672,2]
[408021588,1773037838075,-500.0,0.00019672,2]
[408021590,1773037838084,-252.34824749,0.00019672,2]
[408021592,1773037838093,-150.0,0.00019672,2]
[408021594,1773037838102,-150.0,0.00019672,2]
[408021595,1773037838111,-500.0,0.00019672,2]
[408021597,1773037838120,-150.0,0.00019672,2]
[408021599,1773037838129,-150.0,0.00019672,2]
[408021601,1773037838138,-150.0,0.00019672,2]
[408021603,1773037838147,-434.07,0.00019672,2]
[408021604,1773037838156,-500.0,0.00019672,2]
[408021606,1773037838164,-150.0,0.00019672,2]
[408021608,1773037838173,-150.0,0.00019672,2]
[408021610,1773037838183,-252.77032458,0.00019672,2]
[408021611,1773037838192,-288.01614418,0.00019672,2]
[408021613,1773037838206,-150.0,0.00019672,2]
[408021615,1773037838215,-150.0,0.00019672,2]
[408021617,1773037838224,-150.0,0.00019672,2]
[408021618,1773037838234,-500.0,0.00019672,2]
[408021620,1773037838244,-500.0,0.00019672,2]
[408021622,1773037838254,-640.216923,0.00019672,2]
[408021624,1773037838263,-400.0,0.000197,7]
[408021626,1773037838275,-1000.0,0.00019726,2]
[408021628,1773037838284,-150.0,0.00019727,2]
[408021630,1773037838293,-500.0,0.00019727,2]
[408021631,1773037838302,-538.0,0.00019727,2]
[408021633,1773037838311,-150.0,0.00019727,2]
[408021635,1773037838321,-150.0,0.00019727,2]
[408021636,1773037838330,-500.0,0.00019727,2]
[408021638,1773037838339,-150.0,0.00019727,2]
[408021640,1773037838348,-150.0,0.00019727,2]
[408021642,1773037838357,-150.0,0.00019727,2]
[408021643,1773037838366,-500.0,0.00019727,2]
[408021645,1773037838375,-150.0,0.00019727,2]
[408021647,1773037838384,-200.0,0.00019727,2]
[408021649,1773037838393,-150.0,0.00019727,2]
[408021651,1773037838402,-500.0,0.00019727,2]
[408021653,1773037838412,-500.0,0.00019727,2]
[408021655,1773037838421,-2491.711,0.0001975,2]
[408021656,1773037838430,-182.884,0.0001975,2]
[408021658,1773037838439,-228.6,0.00019779,2]
[408021660,1773037838448,-150.0,0.00019782,2]
[408021662,1773037838457,-500.0,0.00019782,2]
[408021663,1773037838466,-150.0,0.00019782,2]
[408021665,1773037838475,-150.0,0.00019782,2]
[408021667,1773037838485,-500.0,0.00019782,2]
[408021669,1773037838494,-150.0,0.00019782,2]
[408021671,1773037838504,-200.87563366,0.00019782,2]
[408021672,1773037838514,-500.0,0.00019782,2]
[408021674,1773037838524,-150.0,0.00019782,2]
[408021676,1773037838533,-150.0,0.00019782,2]
[408021678,1773037838542,-500.0,0.00019782,2]
[408021680,1773037838551,-500.0,0.00019782,2]
[408021682,1773037838561,-400.0,0.000198,7]
[408021684,1773037838570,-967.1067069,0.000198,2]
[408021686,1773037838579,-324.0,0.00019803,2]
[408021687,1773037838589,-250.0,0.0001981,2]
[408021689,1773037838598,-157.13002813,0.00019836,2]
[408021691,1773037838607,-250.0,0.00019836,2]
[408021693,1773037838616,-499.0,0.00019836,2]
[408021695,1773037838625,-150.0,0.00019836,2]
[408021697,1773037838634,-251.75912456,0.00019836,2]
[408021698,1773037838643,-150.0,0.00019836,2]
[408021700,1773037838652,-500.0,0.00019836,2]
[408021702,1773037838661,-150.0,0.00019836,2]
[408021704,1773037838670,-256.0280639,0.00019836,2]
[408021706,1773037838679,-150.0,0.00019836,2]
[408021708,1773037838688,-500.0,0.00019836,2]
[408021709,1773037838697,-500.0,0.00019836,2]
[408021711,1773037838706,-200.0,0.0001984,2]
[408021713,1773037838715,-172.39,0.0001985,2]
[408021715,1773037838725,-1428.38747117,0.00019851,2]
[408021717,1773037838734,-500.0,0.00019851,2]
[408021718,1773037838743,-151.0,0.00019851,2]
[408021720,1773037838752,-151.0,0.00019851,2]
[408021722,1773037838761,-151.0,0.00019851,2]
[408021724,1773037838770,-151.0,0.00019851,2]
[408021726,1773037838780,-151.0,0.00019851,2]
[408021728,1773037838790,-151.0,0.00019851,2]
[408021729,1773037838799,-151.0,0.00019851,2]
[408021731,1773037838808,-2500.0,0.00019851,2]
[408021733,1773037838817,-151.0,0.00019851,2]